[Event "British Championship 2024"]
[Site "Hull"]
[Date "2024.07.31"]
[Round "1.1"]
[White "Adams, Michael"]
[Black "Villiers, Thomas"]
[Result "1/2-1/2"]
[Annotator "TA"]
[ECO "B47"]
[WhiteElo "2670"]
[BlackElo "2229"]
[PlyCount "101"]
[EventDate "2024.07.31"]
[EventCountry "GBR"]
[SourceTitle "playchess.com"]
[Source "ChessBase"]
[SourceQuality "1"]
[TimeControl "40/5400+30:1800+30"]

{[%evp 12,101,50,10,14,0,5,0,0,0,0,0,0,0,25,0,45,51,58,52,58,54,57,58,113,68,139,146,136,109,104,104,103,93,92,110,102,93,122,0,0,0,0,0,39,49,43,51,45,20,56,16,1,8,16,0,0,10,10,0,0,0,22,31,32,24,40,0,49,41,49,49,45,43,53,31,33,4,29,0,8,8,12,0,0,0,0,0,0,0,0,0]} 1. e4 {[%emt 0:00:02]} c5 {[%emt 0:00:11]} 2. Nf3 {[%emt 0:00:08]} e6 {[%emt 0:00:22]} 3. d4 {[%emt 0:00:34]} cxd4 {[%emt 0:00:18]} 4. Nxd4 {[%emt 0:00:05]} Nc6 {[%emt 0:00:23]} 5. Nc3 {[%emt 0:00:16]} Qc7 {[%emt 0:00:24]} 6. f4 {[%emt 0:00:15]} a6 {[%emt 0:01:16]} 7. Nxc6 {[%emt 0:00:21]} bxc6 {[%emt 0:00:50]} 8. Qf3 {[%emt 0:00:24]} d5 {[%emt 0:00:53]} 9. Be3 {[%emt 0:01:31][%cal Bc1e3,Be3d4,Bd4e5][%mdl 32]} Nf6 {[%emt 0:00:39]} 10. Bd4 {[%emt 0:02:33]} Be7 {[%emt 0:03:14]} 11. O-O-O {[%emt 0:02:41]} O-O {[%emt 0:02:09]} 12. Bd3 {[%emt 0:02:32]} Bb7 {[%emt 0:03:18]} 13. Rhe1 {[%emt 0:11:09]} c5 {[%emt 0:03:39]} 14. Be5 {[%emt 0:01:29]} Qb6 {[%emt 0:04:09]} 15. exd5 {[%emt 0:06:49]} exd5 {[%emt 0:02:00]} 16. Qh3 {[%emt 0:02:26]} g6 $1 {[%emt 0:01:42]} 17. f5 {[%emt 0:06:12] Threatens to win with Qh6.} Rfe8 {[%emt 0:08:31]} 18. fxg6 {[%emt 0:09:22]} hxg6 {[%emt 0:01:41]} (18... fxg6 $14 19. Qg3 Nh5) 19. Rf1 $16 {[%emt 0:04:54][%cal Od3g6]} Nh5 {[%emt 0:05:25] Strongly threatening ...Bg5+.} 20. g4 {[%emt 0:02:21] White is much more active.} Bg5+ {[%emt 0:00:32]} 21. Kb1 {[%emt 0:00:06]} Nf6 {[%emt 0:02:44]} 22. Na4 {[%emt 0:06:43] Really sharp!} Qc6 {[%emt 0:02:19]} 23. Bxf6 {[%emt 0:01:33]} Bxf6 {[%emt 0:00:08]} 24. Qf3 $1 {[%emt 0:00:48]} (24. Nxc5 Re7 $14 (24... Bxb2 25. Rxf7 Bg7 26. Rxb7 $11)) 24... Re6 {[%emt 0:01:38][%cal Oa8f8] [#] Hoping for ...Rf8!} 25. g5 $1 {[%emt 0:00:53][%mdl 512]} Qxa4 $11 {[%emt 0:12:55]} (25... Bxg5 26. Qxf7+ Kh8 27. Rf3 (27. Nxc5 Re7 $18) 27... Qxa4 28. Rh3+ (28. Qxe6 Qe8 $18) (28. Qxe6 Qe8 $18)) (25... c4 $6 26. Bxg6 fxg6 27. gxf6 $18) 26. gxf6 {[%emt 0:00:12]} Qh4 {[%emt 0:00:28][%cal Oa8d8]} 27. b3 {[%emt 0:04:19]} c4 {[%emt 0:00:59] [#]} 28. Bxc4 {[%emt 0:04:52]} dxc4 {[%emt 0:00:28]} 29. Qxb7 {[%emt 0:00:07]} Rae8 {[%emt 0:01:17]} 30. Qf3 {[%emt 0:01:57]} Re2 {[%emt 0:02:58]} 31. h3 {[%emt 0:01:52]} cxb3 {[%emt 0:00:55]} 32. axb3 {[%emt 0:00:08]} R2e3 $1 {[%emt 0:00:11]} 33. Qf4 {[%emt 0:07:44]} (33. Qg2 {simplifies} Qxh3 34. Qxh3 Rxh3 35. Rd6) 33... Qxh3 {[%emt 0:00:35][%cal Oe3b3] ...Rxb3+! is the strong threat.} 34. Kb2 {[%emt 0:02:29] Rh1 would now be deadly.} R3e4 {[%emt 0:00:52]} 35. Qc7 {[%emt 0:07:43]} Re2 {[%emt 0:03:46]} 36. Rf4 {[%emt 0:03:12]} Qc8 {[%emt 0:05:17]} 37. Rd7 {[%emt 0:01:50]} Qxc7 {[%emt 0:00:29]} 38. Rxc7 $14 {[%emt 0:00:02][%mdl 4096] Endgame. KRR-KRR} g5 {[%emt 0:00:30]} 39. Rd4 {[%emt 0:02:01]} R2e6 {[%emt 0:03:38]} (39... Kh7 $11 {should be considered.}) 40. Rd5 {[%emt 0:00:12]} Rxf6 {[%emt 0:00:17]} 41. Rxg5+ {[%emt 0:30:07]} Kf8 {[%emt 0:30:08]} 42. Rd5 {[%emt 0:05:03]} Kg7 {[%emt 0:02:54]} 43. b4 {[%emt 0:00:00]} Ree6 {[%emt 0:00:00]} 44. Kb3 {[%emt 0:00:00]} Kg6 {[%emt 0:00:00]} 45. c3 {[%emt 0:00:00]} Rc6 {[%emt 0:00:00] The position is equal.} 46. Rcd7 {[%emt 0:00:00]} Rfe6 $1 {[%emt 0:00:00]} 47. Rd8 {[%emt 0:00:00]} f5 {[%emt 0:00:00][%cal Bf7f5,Bf5f4][%mdl 32]} 48. Rg8+ {[%emt 0:00:00]} Kf7 {[%emt 0:00:00]} 49. Rg3 {[%emt 0:00:00]} (49. Rxf5+ $2 {is the wrong capture.} Kxg8 50. Rf3 Re4 $19) 49... f4 {[%emt 0:00:00]} 50. Rf3 {[%emt 0:00:00]} Re4 {[%emt 0:00:00]} 51. Kc2 {[%emt 0:00:00] Weighted Error Value: White=0.11 (very precise) /Black=0.11 (very precise) .  Mistake:       	White=1     	Black=2      Inaccurate:     	White=4     	Black=4      OK:         	White=13    	Black=20     Best:        	White=5     	Black=4      Strong:       	White=1     	Black=3      Brilliant:      	White=1     	---} 1/2-1/2

[Event "British Championship 2024"]
[Site "Hull"]
[Date "2024.07.31"]
[Round "1.2"]
[White "Boswell, Jacob Connor"]
[Black "Howell, David W L"]
[Result "0-1"]
[Annotator "TA"]
[ECO "E15"]
[WhiteElo "2274"]
[BlackElo "2675"]
[PlyCount "66"]
[EventDate "2024.07.31"]
[EventCountry "GBR"]
[SourceTitle "playchess.com"]
[Source "ChessBase"]
[SourceQuality "1"]
[TimeControl "40/5400+30:1800+30"]

{[%evp 21,66,10,17,9,0,0,6,0,-13,0,13,-8,-21,-19,-16,-20,0,-14,-16,-45,-25,-53,-44,-46,-45,-121,-37,-67,-34,-143,-155,-314,-318,-584,-565,-720,-733,-690,-712,-843,-856,-29984,-29985,-29980,-1482,-29997,-29998]} 1. d4 {[%emt 0:02:42]} Nf6 {[%emt 0:00:31]} 2. c4 {[%emt 0:00:09]} e6 {[%emt 0:01:15]} 3. Nf3 {[%emt 0:00:15]} b6 {[%emt 0:00:15]} 4. g3 {[%emt 0:00:25]} Ba6 {[%emt 0:00:10]} 5. b3 {[%emt 0:00:34]} Bb4+ {[%emt 0:02:13]} 6. Bd2 {[%emt 0:01:09]} Be7 {[%emt 0:00:07]} 7. Nc3 {[%emt 0:01:53]} d5 {[%emt 0:00:35]} 8. cxd5 {[%emt 0:05:21]} exd5 {[%emt 0:00:21]} 9. Bg2 {[%emt 0:01:42]} O-O {[%emt 0:00:21]} 10. O-O {[%emt 0:02:19]} Nbd7 {[%emt 0:00:19]} 11. Ne5 {[%emt 0:05:14]} Bb7 $1 {[%emt 0:00:48]} 12. Bf4 {[%emt 0:04:46]} Re8 {[%emt 0:03:56]} 13. Rc1 {[%emt 0:07:16]} Nf8 {[%emt 0:01:08]} 14. Nd3 {[%emt 0:18:01] The position is equal.} Ne6 {[%emt 0:08:34]} 15. Be5 {[%emt 0:05:30]} Rc8 {[%emt 0:21:12]} 16. Nf4 {[%emt 0:06:43]} Nxf4 {[%emt 0:05:32]} 17. Bxf4 {[%emt 0:00:07]} Qd7 {[%emt 0:00:21] Wards off Bh3} 18. Qd3 {[%emt 0:02:56]} h6 {[%emt 0:05:05]} 19. Rfd1 {[%emt 0:04:36]} c6 {[%emt 0:07:04]} 20. Qb1 {[%emt 0:04:56]} Bb4 {[%emt 0:06:01]} 21. Bf3 {[%emt 0:02:24]} Ba6 {[%emt 0:03:02]} 22. Qb2 {[%emt 0:05:23]} g5 {[%emt 0:14:34]} 23. Be3 {[%emt 0:04:44]} (23. Be5 $15) 23... Re7 {[%emt 0:07:11]} (23... Qh3 $17 {...Ng4 would now be deadly.} 24. Re1 Ng4 25. Bxg4 Qxg4) 24. Qd2 {[%emt 0:03:31][%cal Oe3g5] And now Bxg5! would win.} Kh8 {[%emt 0:04:59] Black is much more active.} 25. h4 {[%emt 0:04:43]} (25. a3 $15 Bd6 (25... Bxa3 $2 26. Ra1 $18) 26. Qc2) 25... Ng4 $17 {[%emt 0:03:36]} 26. Bxg4 {[%emt 0:02:13] This move loses the game for White.} (26. a3 $17 Bd6 (26... Bxa3 27. Ra1 $17) 27. Bxg5 hxg5 28. Qxg5) 26... Qxg4 $19 {[%emt 0:00:05]} 27. hxg5 $2 {[%emt 0:01:06] [#]} (27. a3 {keeps fighting.} Bd6 (27... Bxa3 $2 28. Ra1 $19) 28. Kg2) 27... Rce8 $1 {[%emt 0:00:59][%cal Oe7e3] White must now prevent ...Rxe3!} 28. a3 {[%emt 0:01:51]} Bxc3 {[%emt 0:02:46]} 29. Rxc3 {[%emt 0:00:17] White is weak on the light squares} Bxe2 {[%emt 0:00:05]} 30. Rdc1 {[%emt 0:01:05]} Bf3 {[%emt 0:00:19] ( -> ...Qh3)} 31. Rxc6 {[%emt 0:01:33] [#]} Re6 $1 {[%emt 0:00:23]} ({Inferior is} 31... Rxe3 32. Rxh6+ Kg7 33. fxe3 $11) 32. Rxe6 {[%emt 0:00:27]} Qxe6 {[%emt 0:01:25]} (32... fxe6 $142 33. Qd1 Bxd1 34. Rxd1 Qxd1+ 35. Kg2 Rf8 (35... Qxb3 $2 36. gxh6 Qxa3 37. Kh2 $19) 36. g6 Qf3+ (36... Qxb3 $2 37. Bf4 $19) (36... Kg7 37. b4 Qf3+ 38. Kg1 Kxg6 39. b5 Rc8 40. Bf4 Rc2 41. Be3 Re2 42. Kf1 Rxe3 43. Kg1 Re1+ 44. Kh2 Qh1#) 37. Kg1 Rf5 (37... Qd1+ {gets mated.} 38. Kg2 Rf5 39. f4 Rh5 40. g7+ Kxg7 41. Bg1 Qe2+ 42. Bf2 Qe4+ 43. Kf1 Rh1+ 44. Bg1 Qf3+ 45. Ke1 Qg2 46. Kd1 Rxg1#) (37... Kg7 {is a self mate.} 38. b4 Rf5 39. g4 Qxg4+ 40. Kf1 Qd1+ 41. Kg2 Qf3+ 42. Kf1 Qxe3 43. f4 Rxf4+ 44. Kg2 Rf2+ 45. Kh1 Qe1#) 38. g4 Qxg4+ 39. Kf1 Qd1+ (39... Qxg6 $2 40. Ke2 $19) 40. Kg2 Qf3+ (40... Qxb3 41. Kh2 Qd1 42. Kg2 Qf3+ 43. Kf1 Qxe3 44. g7+ Kxg7 45. f4 Rxf4+ 46. Kg2 Rf2+ 47. Kh1 Qe1#) 41. Kf1 Qxe3 42. g7+ Kxg7 43. f4 Rxf4+ (43... Qxd4 44. Kg2 Rxf4 45. Kh1 Qf2 46. b4 Rh4#) 44. Kg2 Rf2+ 45. Kh1 Qe1#) 33. Bf4 {[%emt 0:00:37]} Qh3 {[%emt 0:01:48] Weighted Error Value: White=1.01/Black=0.24 (precise) .  Mistake:       	White=4     	Black=1      Inaccurate:     	White=3     	Black=1      OK:         	White=5     	Black=9      Strong:       	---       	Black=1} 0-1

[Event "British Championship 2024"]
[Site "Hull"]
[Date "2024.07.31"]
[Round "1.3"]
[White "Shafi, Declan"]
[Black "Jones, Gawain C B"]
[Result "0-1"]
[Annotator "TA"]
[ECO "A58"]
[WhiteElo "2222"]
[BlackElo "2633"]
[PlyCount "54"]
[EventDate "2024.07.31"]
[EventCountry "GBR"]
[SourceTitle "playchess.com"]
[Source "ChessBase"]
[SourceQuality "1"]
[TimeControl "40/5400+30:1800+30"]

{[%evp 9,54,27,27,27,28,26,13,0,0,0,3,4,0,0,36,43,77,77,162,157,142,144,166,120,139,137,116,114,81,83,178,-191,-192,-1181,-1181,-1023,-1009,-29987,-1206,-29988,-29989,-29989,-29990,-29990,-1346,-29991,-29992]} 1. d4 {[%emt 0:00:03]} Nf6 {[%emt 0:00:18]} 2. c4 {[%emt 0:00:06]} c5 {[%emt 0:00:12]} 3. d5 {[%emt 0:00:13]} b5 {[%emt 0:00:27]} 4. cxb5 {[%emt 0:00:16]} a6 {[%emt 0:00:05]} 5. bxa6 {[%emt 0:00:37]} e6 {[%emt 0:00:09]} 6. Nc3 {[%emt 0:09:30]} exd5 {[%emt 0:00:06]} 7. Nxd5 {[%emt 0:02:04][%cal Oe2e4]} Be7 {[%emt 0:00:07]} 8. Bf4 {[%emt 0:10:41] The position is equal.} Nxd5 {[%emt 0:05:39]} 9. Qxd5 {[%emt 0:00:08]} Nc6 {[%emt 0:00:33][%cal Oe8g8]} 10. e4 {[%emt 0:04:57]} O-O {[%emt 0:15:16][%cal Od8b6]} 11. Nf3 {[%emt 0:03:09]} Rxa6 {[%emt 0:09:27]} 12. Bc4 {[%emt 0:09:44][%cal Oa1d1]} Bb7 {[%emt 0:18:26][%cal Bc8b7,Bb7a6,Ba6b5][%mdl 32]} 13. Qd2 {[%emt 0:04:45][%cal Oe1g1] Wards off Na5} Na5 {[%emt 0:03:36]} 14. Bxa6 $18 {[%emt 0:04:36]} Bxa6 {[%emt 0:00:06] [#]} 15. O-O-O $1 {[%emt 0:02:15]} Qb6 {[%emt 0:08:22][%cal Od7d6]} 16. Qc3 {[%emt 0:05:13]} (16. Qxd7 $18 Nc4 17. Rd2 (17. Qxe7 $2 Qxb2#)) 16... Bb5 $16 {[%emt 0:07:02]} 17. h4 {[%emt 0:09:19][%cal Bh2h4,Bh4h5,Bh5h6][%mdl 32] Hoping for h5.} Ra8 {[%emt 0:00:49]} 18. h5 {[%emt 0:04:28] And now h6 would win.} Qe6 {[%emt 0:05:26]} 19. h6 {[%emt 0:03:02][%csl Gh6][%cal Rc3g7]} f6 {[%emt 0:00:14] [#]} (19... Bf6 $16 {was worth a try.} 20. Be5 (20. Qxc5 $2 Qxa2 21. Qxb5 Nb3+ $19) 20... Qxa2) 20. Ng5 $4 {[%emt 0:05:54][%mdl 8192]} Qxa2 $19 {[%emt 0:00:57] White must now prevent ...Nb3+.} (20... fxg5 21. Qxg7#) 21. Nxh7 $2 {[%emt 0:10:54]} (21. Kc2) 21... Nb3+ {[%emt 0:00:49]} (21... Kxh7 22. hxg7+ Kg6 (22... Kxg7 23. Qg3+ Kf8 24. Rh8+ Kf7 25. Rh7+ Ke8 26. Qg6+) 23. Rh8 $18) 22. Kc2 {[%emt 0:00:16]} Ra3 {[%emt 0:01:05] ( -> ...Nd4+)} (22... Nd4+ 23. Rxd4 cxd4 24. Nxf6+ Bxf6 25. Qb3+ Bc4 (25... Qxb3+ $2 26. Kxb3 Ba4+ 27. Kb4 $19) 26. Qxa2 d3+ (26... Bxa2 $2 27. hxg7 Bxg7 28. Bd6 $19) 27. Kd2 Rxa2 (27... Bxa2 $2 28. hxg7 Bxg7 29. Kxd3 $19) 28. e5 Rxb2+ 29. Kc3 Rc2+ (29... Rxf2 30. h7+ Kh8 31. exf6 $11) 30. Kd4) 23. Ng5 {[%emt 0:05:52]} gxh6 {[%emt 0:01:44]} ({Inferior is} 23... fxg5 24. Qxg7#) (23... Nd4+ $142 24. Qxd4 cxd4 25. Rh3 Rxh3 (25... fxg5 $2 26. Rxd4 Rxh3 27. gxh3 $19) 26. h7+ Kh8 (26... Rxh7 27. Rxd4 fxg5 28. Be5 Rh1 29. g3 Ra1 30. g4) 27. Nf7+ Kxh7 (27... Qxf7 {leads to mate.} 28. gxh3 Ba4+ 29. Kd3 Qb3+ 30. Kxd4 Qxd1+ 31. Bd2 Qxd2+ 32. Kc4 Qc1+ 33. Kd4 Bc5+ 34. Kd5 Bc6#) 28. Ng5+ fxg5 29. gxh3 gxf4 (29... Ba4+ 30. Kd3 Qb3+ 31. Kxd4 Qxd1+ 32. Kc4 Qb3+ 33. Kd4 Bb5 34. Be3 d6 35. f4 Qd3#) 30. f3 Ba3 (30... Ba4+ {is a self mate.} 31. Kd3 Bxd1 32. Kxd4 Qxb2+ 33. Kc4 Be2+ 34. Kd5 Qb5+ 35. Kd4 Qc5#) 31. Rb1 Qc4+ (31... d3+ 32. Kd2 Bb4+ 33. Kc1 Qc4+ 34. Kd1 Qc2#) 32. Kd1 Qd3+ (32... Ba4+ 33. Ke1 d3 34. Rd1 Bxd1 35. Kf1 d2+ 36. Kf2 Qe2+ 37. Kg1 Bc2 38. bxa3 d1=Q#) 33. Kc1 Ba4 34. bxa3 Qc3#) 24. Ne6 {[%emt 0:02:10] [#]} Nd4+ $1 {[%emt 0:01:39][%mdl 512]} 25. Nxd4 {[%emt 0:00:11]} Rxc3+ {[%emt 0:00:08]} 26. Kxc3 {[%emt 0:00:04]} Qc4+ {[%emt 0:01:01]} 27. Kd2 {[%emt 0:01:03]} cxd4 {[%emt 0:00:08] Weighted Error Value: White=0.88/Black=0.40.  Missed win:     	White=1     	---        Mistake:       	White=2     	Black=2      Inaccurate:     	---       	Black=2      OK:         	White=4     	Black=8      Best:        	White=2     	Black=2      Strong:       	White=1     	---} 0-1

[Event "British Championship 2024"]
[Site "Hull"]
[Date "2024.07.31"]
[Round "1.4"]
[White "McShane, Luke J"]
[Black "Pang, Ethan"]
[Result "1-0"]
[Annotator "TA"]
[ECO "B31"]
[WhiteElo "2617"]
[BlackElo "2164"]
[PlyCount "69"]
[EventDate "2024.07.31"]
[EventCountry "GBR"]
[SourceTitle "playchess.com"]
[Source "ChessBase"]
[SourceQuality "1"]
[TimeControl "40/5400+30:1800+30"]

{[%evp 19,69,54,46,46,60,62,63,55,69,29,45,53,35,35,47,45,95,85,97,93,84,100,92,80,177,83,197,226,234,162,169,101,372,329,364,357,377,373,705,695,759,729,750,753,725,686,6287,6279,6187,6187,5381,2314]} 1. e4 {[%emt 0:00:09]} c5 {[%emt 0:00:30]} 2. Nf3 {[%emt 0:00:07]} Nc6 {[%emt 0:00:27]} 3. Bb5 {[%emt 0:00:06]} e5 {[%emt 0:00:38]} 4. O-O {[%emt 0:00:25]} Nge7 {[%emt 0:00:53]} 5. c3 {[%emt 0:03:25]} g6 {[%emt 0:01:57]} 6. d4 {[%emt 0:00:18]} exd4 {[%emt 0:00:57]} 7. cxd4 {[%emt 0:01:24]} cxd4 {[%emt 0:00:53]} 8. Bf4 {[%emt 0:00:07]} Bg7 {[%emt 0:01:45]} 9. Bd6 {[%emt 0:00:41]} O-O {[%emt 0:02:15]} 10. Nbd2 {[%emt 0:01:56]} a6 {[%emt 0:05:53]} 11. Bd3 {[%emt 0:00:44][%mdl 1024] White has compensation.} b6 {[%emt 0:17:02]} 12. a4 {[%emt 0:21:39]} Bb7 {[%emt 0:15:02][%cal Bc8b7,Bb7c6,Bc6d7,Bd7g4,Bg4h5][%mdl 32]} 13. Qb3 {[%emt 0:01:07] White is slightly better.} Na5 {[%emt 0:03:32][%cal Bc6a5,Ba5b7,Bb7c5][%mdl 32] Dodges Nc4} 14. Qa2 {[%emt 0:01:23] White has more active pieces.} Bc6 {[%emt 0:01:14]} 15. b4 {[%emt 0:04:30][%cal Bb2b4,Bb4b5][%mdl 32]} Nb7 {[%emt 0:00:32]} 16. Bg3 {[%emt 0:00:08]} d6 {[%emt 0:10:28]} 17. Nb3 $36 {[%emt 0:07:42][%mdl 2048] White fights for an advantage.} a5 {[%emt 0:03:05]} (17... Bd7 $14) 18. b5 $16 {[%emt 0:00:25]} ({Reject} 18. Nbxd4 axb4 19. Nxc6 Nxc6 $15) 18... Bd7 {[%emt 0:00:26]} 19. Nbxd4 {[%emt 0:00:08]} Nc5 {[%emt 0:00:29]} 20. Rad1 {[%emt 0:00:26]} Bg4 {[%emt 0:01:38]} 21. Bc2 {[%emt 0:08:54]} Rc8 {[%emt 0:09:27]} (21... Ra7 $16 {was necessary.}) 22. Rfe1 {[%emt 0:03:03]} (22. h3 $18 Bxf3 23. Nxf3) 22... Re8 {[%emt 0:10:08]} (22... Qc7 $16 {is a better defense.}) 23. h3 $18 {[%emt 0:10:23]} Bh5 {[%emt 0:00:19] [#]} 24. Ng5 $1 {[%emt 0:04:12]} d5 {[%emt 0:01:04]} 25. Ndf3 {[%emt 0:02:46]} (25. f3 $18) 25... h6 $2 {[%emt 0:06:40][%mdl 8192] [#] Loses the game.} (25... Bf6 $16 {was called for.}) 26. Nxf7 $1 {[%emt 0:00:27][%mdl 512]} Kxf7 {[%emt 0:00:07]} 27. exd5 {[%emt 0:00:07] Threatens to win with d6+.} Bxf3 {[%emt 0:00:58]} 28. gxf3 {[%emt 0:08:33] aiming for d6+.} Nf5 {[%emt 0:01:25]} (28... Bf6 29. d6+ Kg7) 29. d6+ {[%emt 0:00:56] White is clearly winning.} Re6 {[%emt 0:02:54] [#]} 30. d7 $1 {[%emt 0:01:33][%mdl 512]} Ra8 {[%emt 0:01:10]} (30... Nd4 31. dxc8=N) 31. Bb3 {[%emt 0:02:19]} Nxb3 {[%emt 0:01:38]} 32. Qxb3 {[%emt 0:00:35]} Bf6 {[%emt 0:00:23]} 33. Rxe6 {[%emt 0:00:39] Intending Re8+ and mate.} Kg7 {[%emt 0:00:32]} 34. Re8 {[%emt 0:00:09]} Qxe8 {[%emt 0:00:37]} 35. dxe8=N+ {[%emt 0:00:09] Weighted Error Value: White=0.17 (very precise) /Black=0.41.  Loses game:     	---       	Black=1      Mistake:       	White=2     	Black=4      Inaccurate:     	White=2     	---        OK:         	White=4     	Black=10     Best:        	White=6     	Black=1      Brilliant:      	White=1     	---} (35. dxe8=Q $142 Rxe8 36. Rd7+ Re7 37. Rxe7+ (37. Qe6 Rxd7 38. Qxd7+ Ne7 $18) 37... Bxe7 38. Qe6) 1-0

[Event "British Championship 2024"]
[Site "Hull"]
[Date "2024.07.31"]
[Round "1.5"]
[White "Ledger, Dave J"]
[Black "Conquest, Stuart C"]
[Result "0-1"]
[Annotator "TA"]
[ECO "B67"]
[WhiteElo "2201"]
[BlackElo "2510"]
[PlyCount "100"]
[EventDate "2024.07.31"]
[EventCountry "GBR"]
[SourceTitle "playchess.com"]
[Source "ChessBase"]
[SourceQuality "1"]
[TimeControl "40/5400+30:1800+30"]

{[%evp 32,100,-25,-40,0,0,0,0,-18,-45,-58,-63,-52,-81,-2,-122,0,-217,-47,-214,-156,-150,-179,-174,-135,-150,-152,-156,-58,-146,-142,-515,-522,-488,-253,-1047,-1081,-927,-1014,-988,-1000,-917,-1037,-1037,-1027,-1063,-1063,-949,-982,-922,-580,-567,-512,-960,-938,-861,-709,-832,-700,-696,-648,-674,-689,-575,-354,-29985,-29986,-29986,-29987,-29990,-29989]} 1. e4 {[%emt 0:00:09]} c5 {[%emt 0:00:42]} 2. Nf3 {[%emt 0:00:14]} d6 {[%emt 0:00:31]} 3. d4 {[%emt 0:00:07]} cxd4 {[%emt 0:00:16]} 4. Nxd4 {[%emt 0:00:03]} Nf6 {[%emt 0:00:15]} 5. Nc3 {[%emt 0:00:26]} Bd7 {[%emt 0:00:55]} 6. Bg5 {[%emt 0:02:59]} e6 {[%emt 0:01:16]} 7. Qd2 {[%emt 0:02:28]} a6 {[%emt 0:00:58]} 8. f4 {[%emt 0:08:17]} h6 {[%emt 0:11:19]} 9. Bxf6 {[%emt 0:04:25]} Qxf6 {[%emt 0:00:58]} 10. O-O-O {[%emt 0:02:00]} Nc6 {[%emt 0:02:47]} 11. Nf3 {[%emt 0:05:23]} Qd8 {[%emt 0:08:06]} 12. Kb1 {[%emt 0:05:53] B67: Sicilian: Richter-Rauzer: 7...a6 8 0-0-0 Bd7, lines without 9 f4 Be7.} Be7 {[%emt 0:02:46]} 13. h4 {[%emt 0:04:58]} Qa5 {[%emt 0:10:20]} 14. Bc4 {[%emt 0:15:19]} O-O-O {[%emt 0:21:15]} 15. g4 {[%emt 0:06:20]} Bf6 $146 {[%emt 0:09:58]} ({Predecessor:} 15... Kb8 16. Bb3 Qb6 17. Ne2 Na5 18. Ned4 Rc8 19. Qe2 Nxb3 20. axb3 a5 {½-½ Moskalyov,V (2243)-Calvo,R (2200) Lovholt Memorial sf1 email 2013 [3]}) 16. g5 {[%emt 0:06:28]} Bxc3 {[%emt 0:07:00]} 17. bxc3 {[%emt 0:01:32]} Qc5 {[%emt 0:11:55]} (17... d5 $5 18. exd5 exd5 $11) 18. Bb3 {[%emt 0:03:26]} Kc7 {[%emt 0:00:05]} 19. Rhg1 {[%emt 0:05:46]} h5 {[%emt 0:00:44]} 20. g6 {[%emt 0:07:59]} f6 {[%emt 0:00:17]} 21. Nd4 {[%emt 0:00:42]} Rhe8 {[%emt 0:00:50]} 22. Rg3 {[%emt 0:02:52]} Na5 {[%emt 0:02:51]} (22... e5 $17 23. fxe5 dxe5 24. Nxc6 Bxc6) 23. Qe2 {[%emt 0:03:40] [#]} (23. e5 $11 {keeps the balance.} dxe5 24. fxe5 fxe5 (24... Qxe5 25. Rd3 $14) 25. Rg5) 23... b5 {[%emt 0:01:39]} (23... e5 $1 $17 {[%cal Re5d4]} 24. fxe5 dxe5) 24. Qf3 $2 {[%emt 0:01:37]} (24. e5 $1 $11 dxe5 25. fxe5 Qxe5 26. Re3) 24... Rb8 $2 {[%emt 0:01:45]} (24... e5 $19 25. fxe5 dxe5) 25. f5 $2 {[%emt 0:03:09]} ({Better is} 25. e5 $1 $15 Nc4 26. exd6+ (26. Qxh5 $2 dxe5 27. fxe5 Qa3 $19) (26. exf6 Qa3 $17) 26... Kc8 (26... Nxd6 27. Qe3 $11) 27. Ka1) 25... Nc4 {[%emt 0:01:57]} 26. Bxc4 {[%emt 0:01:22]} (26. Qxh5 $2 Qa3 27. Bxc4 bxc4+ 28. Nb3 exf5 $19 (28... cxb3 $2 29. cxb3 exf5 30. c4 $19)) 26... bxc4+ {[%emt 0:00:04]} 27. Kc1 {[%emt 0:00:11]} e5 {[%emt 0:00:53]} 28. Ne6+ {[%emt 0:00:59]} Bxe6 {[%emt 0:00:47]} 29. fxe6 {[%emt 0:00:05]} Qa3+ {[%emt 0:00:56]} (29... Rxe6 30. Qf5 Ree8 31. Qxh5 $11) 30. Kd2 {[%emt 0:00:05]} Rb2 {[%emt 0:00:20]} (30... Rxe6 $6 31. Rg5 $11) 31. Qxh5 $2 {[%emt 0:01:31][%mdl 8192] [#]} (31. Rc1 $17 {is more resistant.}) 31... Rxc2+ $1 $19 {[%emt 0:00:22]} (31... Rxe6 32. Qf5 Re8 33. Rc1 $11) (31... Rxa2 32. Qh7 Re7 (32... Rxe6 $2 33. Qxg7+ Kc6 34. Rb1 $18) 33. h5 $11) (31... Qxa2 32. Rc1 Rxe6 33. Qg4 $11) 32. Ke1 {[%emt 0:00:46]} Rxe6 {[%emt 0:00:32]} (32... Rxc3 $142 33. Rxc3 Qxc3+ 34. Kf2 Rxe6) 33. Qh8 $2 {[%emt 0:01:11]} (33. Qf3 Re8 (33... Qxa2 34. Qe3 $17) (33... Rxa2 34. h5 $17) 34. h5) 33... Qc5 $19 {[%emt 0:00:36]} ({And not} 33... Rxc3 34. Qxg7+ Kc6 35. Qa7 Rxg3 36. Qa8+ Kc7 (36... Kc5 $2 37. Qc8+ Kb4 38. Rb1+ Kc3 39. Rb3+ $18) 37. Qa7+ Kc6 38. Qa8+ Kc7 (38... Kc5 $2 39. Qc8+ Kb4 40. Rb1+ Kc3 41. Rb3+ $18) 39. Qa7+ Kc6 $11) 34. Qxg7+ {[%emt 0:00:31]} Kc6 {[%emt 0:00:39]} 35. Rd2 {[%emt 0:01:00]} Rxd2 {[%emt 0:00:23]} 36. Kxd2 {[%emt 0:00:03]} Qf2+ {[%emt 0:00:07]} 37. Kd1 {[%emt 0:00:56]} Qxg3 {[%emt 0:01:18]} 38. Qf7 {[%emt 0:01:48]} Qd3+ {[%emt 0:00:17]} 39. Ke1 {[%emt 0:01:30]} Qxe4+ {[%emt 0:00:06]} 40. Kf1 {[%emt 0:00:32]} Re7 {[%emt 0:01:04]} 41. Qxe7 {[%emt 0:04:52]} Qxg6 {[%emt 0:01:51]} 42. Qd8 {[%emt 0:03:02]} (42. Qe6 $142 Qd3+ 43. Kg2) 42... Qd3+ $19 {[%emt 0:09:08]} 43. Kg2 {[%emt 0:03:57]} Qxc3 {[%emt 0:07:43]} 44. h5 {[%emt 0:03:24]} Qd2+ {[%emt 0:00:58]} 45. Kf3 {[%emt 0:01:12]} Qd3+ {[%emt 0:06:41]} ({Weaker is} 45... Qxa2 46. Qc8+ Kb5 47. Qb7+ Kc5 48. Qc7+ Kd5 49. Qb7+ Kd4 50. Qb6+ Kc3 (50... Kd5 51. Qb7+ Kc5 52. Qc7+ Kd5 53. Qb7+ $19) 51. Qe3+ Kb2 52. Qd2+ Kb3 53. Qd1+ Kc3 54. h6 $11) 46. Kf2 {[%emt 0:00:12]} c3 {[%emt 0:01:05]} 47. Qc8+ {[%emt 0:01:42]} Kd5 {[%emt 0:00:40]} 48. Qa8+ $2 {[%emt 0:00:17]} (48. Qb7+ $19 Kc5 49. Qc7+ Kb5 (49... Kb4 $2 50. h6 $19) 50. Qb7+ Ka5 (50... Kc5 $2 51. Qc7+ Kb4 52. h6 $19) 51. Qc7+ Ka4 52. h6) 48... Kd4 {[%emt 0:01:42]} 49. Qa7+ {[%emt 0:00:57]} Ke4 {[%emt 0:00:14]} 50. h6 {[%emt 0:00:27]} Qd2+ {[%emt 0:00:20]} 0-1